Cogmind - Beta 13 @@@ ROGUE MODE // 2024.06.03 @ 21:00:48 Player: H3-RMN Result: Destroyed by as-59578 with Assembled Maul Performance ------------- Evolutions (0) 0 Regions Visited (2) 400 Robots Destroyed (27) 135 Value Destroyed (559) 559 Prototype IDs (3) 60 Alien Tech Used (0) 0 Bonus (35) 35 TOTAL SCORE: 1189 Bonus ------- High Alert Combat Kills 35 Cogmind --------- Core Integrity 0/250 Matter 290/300 Energy 100/100 System Corruption 1% Temperature Cool (0) Movement Core (1450) Ox28 Location -10/Mines Parts ------- > --- POWER (1) -------- (None) > --- PROPULSION (2) --- Light Treads > --- UTILITY (2) ------ Huge Storage Unit Seismic Detector > --- WEAPON (2) ------- Assault Rifle Mining Claw > --- INVENTORY (25) --- Light Ion Engine Light Treads Compact Wheel Compact Wheel Cooling System Cooling System Huge Storage Unit ECM Suite Hacking Suite Heavy EM Pulse Gun Heavy EM Pulse Gun Heavy EM Pulse Gun Heavy EM Pulse Gun Light Assault Rifle Light Assault Rifle Datajack Peak State ------------ > --- POWER ------------ Light Ion Engine > --- PROPULSION ------- Light Treads Compact Wheel > --- UTILITY ---------- Huge Storage Unit Seismic Detector > --- WEAPON ----------- Assault Rifle Light Assault Rifle > --- INVENTORY -------- Light Ion Engine Light Treads Compact Wheel Compact Wheel Huge Storage Unit ECM Suite Hacking Suite Heavy EM Pulse Gun Heavy EM Pulse Gun Heavy EM Pulse Gun Heavy EM Pulse Gun Light Assault Rifle Light Assault Rifle Datajack Mining Claw [Rating: 9] Favorites ----------- Power Light Ion Engine Engine Light Ion Engine Propulsion Light Treads Treads Light Treads Wheel Compact Wheel Utility Huge Storage Unit Device Seismic Detector Storage Huge Storage Unit Protection Light Armor Plating Weapon Assault Rifle Energy Gun Small Laser Ballistic Gun Assault Rifle Slashing Weapon Mining Claw Build | -11 -10 -10 ------- Run | Yrd Mat Min Slots Evolved . | . . . Power . | . . . Propulsion . | . . . Utility . | . . . Weapon . | . . . Parts Attached 18 | 7 8 3 Power 2 | 1 1 . Engine 2 | 1 1 . Core . | . . . Reactor . | . . . Propulsion 6 | 2 3 1 Treads 3 | 1 1 1 Leg . | . . . Wheel 3 | 1 2 . Hover . | . . . Flight . | . . . Utility 5 | 2 3 . Device 2 | 1 1 . Storage 2 | 1 1 . Processor . | . . . Hackware . | . . . Protection 1 | . 1 . Artifact . | . . . Weapon 5 | 2 1 2 Energy Gun 1 | 1 . . Energy Cannon . | . . . Ballistic Gun 3 | 1 1 1 Ballistic Cannon . | . . . Launcher . | . . . Special Weapon . | . . . Impact Weapon . | . . . Slashing Weapon 1 | . . 1 Piercing Weapon . | . . . Special Melee Weapon . | . . . Unidentified Prototypes . | . . . Parts Lost 7 | . 3 4 Power 2 | . 1 1 Propulsion 3 | . 1 2 Utility 1 | . 1 . Weapon 1 | . . 1 Highest Loss Streak 2 | . 1 2 To Critical Strikes . | . . . Average Slot Usage (%) 99 | . 99 97 Engine 13 | . 13 12 Treads 14 | . 14 13 Wheel 13 | . 13 14 Device 7 | . 5 14 Storage 14 | . 14 14 Protection 6 | . 8 . Energy Gun 2 | . 3 . Ballistic Gun 25 | . 24 27 Naked Turns . | . . . Heaviest Build 89 | 12 89 87 Greatest Support 40 | 16 40 16 Greatest Overweight (x) 8 | . 8 5 Average Overweight (x) 3 | . 3 5 Largest Inventory Capacity 25 | 8 25 25 Average Capacity 19 | 7 18 25 Most Carried 18 | 5 18 18 Average Carried 12 | 3 11 16 Final Capacity 25 | 8 25 25 Final Carried 18 | 5 18 16 Class Distribution -------------------- 100% | Mutant Dominant Class ---------------- Mutant | -10/Materials Mutant | -10/Mines Resources | -11 -10 -10 ----------- Run | Yrd Mat Min Matter Collected 698 | 270 372 56 Remotely . | . . . Salvage Created 801 | 101 634 66 Parts 51 | 6 43 2 Haulers Intercepted 1 | . 1 . Recyclers Shooed . | . . . Parts Field Recycled . | . . . Retrieved Matter . | . . . Parts Self-Destructed . | . . . Prevented . | . . . Kills | -11 -10 -10 ------- Run | Yrd Mat Min Combat Hostiles Destroyed 23 | . 18 5 Guns 23 | . 18 5 Classes Destroyed 8 | 2 5 1 Worker 1 | . 1 . Tunneler 1 | 1 . . Hauler 1 | . 1 . Recycler 1 | 1 . . Operator 2 | . 2 . Swarmer 9 | . 6 3 Grunt 12 | . 12 . Assembled 2 | . . 2 Best Kill Streak 7 | 2 7 3 Combat Bots Only 6 | . 6 3 Max Kills in Single Turn 2 | 1 2 1 Gunslinging 1 | . 1 . Exploded . | . . . Melee . | . . . Uniques/NPCs Destroyed . | . . . Combat | -11 -10 -10 -------- Run | Yrd Mat Min Hostile Shots Fired 114 | . 89 25 Missed 25 | . 21 4 Damage Taken 952 | . 732 220 Core 276 | . 199 77 Absorbed by Shields . | . . . Core Remaining (%) 100 | 100 . . Volleys Fired 95 | 4 77 14 Largest 2 | 2 2 2 Hottest 60 | 60 60 40 Shots Fired 189 | 8 154 27 Gun 189 | 8 154 27 Cannon . | . . . Launcher . | . . . Special . | . . . Kinetic 167 | 4 136 27 Thermal 22 | 4 18 . Explosive . | . . . Electromagnetic . | . . . Robot Hit Streak 21 | 2 21 3 Robot Miss Streak 6 | 2 6 2 Penetration Max . | . . . Secondary Targets 5 | . 2 3 Max Gunslinging Chain 1 | . 1 1 Shots Hit Robots 131 | 4 113 14 Core Hits 47 | 3 38 6 Critical Kills 2 | . . 2 Critical Parts Destroyed 1 | . 1 . Critical Strikes 3 | . 1 2 Destroy 3 | . 1 2 Melee Attacks 7 | . . 7 Impact . | . . . Slashing 7 | . . 7 Piercing . | . . . Sneak Attacks . | . . . Combat Hostiles . | . . . Follow-up Attacks . | . . . Damage Inflicted 1500 | 75 1265 160 Guns 1500 | 75 1265 160 Cannons . | . . . Explosions . | . . . Melee . | . . . Ramming . | . . . Kinetic 1316 | 40 1116 160 Thermal 184 | 35 149 . Explosive . | . . . Electromagnetic . | . . . Impact . | . . . Slashing . | . . . Piercing . | . . . Highest Corruption . | . . . Average Corruption . | . . . Corruption Purged . | . . . Corruption Blocked . | . . . Overload Shots . | . . . Overflow Damage . | . . . Projectiles . | . . . Explosions . | . . . Melee . | . . . Knockbacks . | . . . Impact . | . . . Kinetic . | . . . Secondary . | . . . Self-Inflicted Damage . | . . . Shots . | . . . Rammed . | . . . Targets Rammed . | . . . Kicked . | . . . Crushed . | . . . Highest Temperature 126 | . 126 50 Average Temperature 20 | . 20 25 Received Heat Transfer 457 | . 357 100 Siege Activations . | . . . Robots Corrupted . | . . . Combat Hostiles . | . . . Parts Fried . | . . . Impact Corruptions . | . . . Robots Melted . | . . . Combat Hostiles . | . . . Parts Melted . | . . . Heat Transferred 400 | 75 325 . Parts Sabotaged . | . . . Parts Stolen . | . . . Parts Stripped . | . . . Power Chain Reactions . | . . . Alert | -11 -10 -10 ------- Run | Yrd Mat Min Peak Influence 455 | 10 455 171 Initial 121 | . 6 121 Average 222 | 2 281 137 Maximum Alert Level 2 | . 2 . Low Security (%) 49 | 100 21 100 Level 1 41 | . 64 . Level 2 8 | . 13 . Level 3 . | . . . Level 4 . | . . . Level 5 . | . . . High Security . | . . . Max Security . | . . . Squads Dispatched 6 | . 6 . Investigation 4 | . 4 . Extermination . | . . . Reinforcement 2 | . 2 . Assault . | . . . Garrison . | . . . Intercept . | . . . Searches Triggered . | . . . Construction Impeded . | . . . Haulers Reinforced . | . . . Active Scanning Responses . | . . . Cargo Convoy Interrupts . | . . . Stealth | -11 -10 -10 --------- Run | Yrd Mat Min Distress Signals 4 | . 4 . Communications Jammed . | . . . Distress Signals . | . . . Times Spotted 40 | . 33 7 Peak Tracking Total 9 | . 9 3 Tactical Retreats 2 | . 2 . Traps | -11 -10 -10 ------- Run | Yrd Mat Min Traps Triggered 1 | . 1 . Indirectly . | . . . Trap Hack Attempts . | . . . Triggered . | . . . Disarmed . | . . . Reprogrammed . | . . . Reused . | . . . Traps Extracted . | . . . Installed . | . . . Triggered . | . . . Machines | -11 -10 -10 ---------- Run | Yrd Mat Min Machines Disabled . | . . . Max in Single Turn . | . . . Machines Repaired . | . . . Machines Dismantled . | . . . Machines Sabotaged . | . . . Overloaded Fab Kills . | . . . Hacking | -11 -10 -10 --------- Run | Yrd Mat Min Machines Accessed 6 | . 6 . Terminals 4 | . 4 . Fabricators . | . . . Repair Stations . | . . . Recycling Units 2 | . 2 . Scanalyzers . | . . . Garrison Access . | . . . Total Hacks 21 | . 21 . Successful 13 | . 13 . Failed 7 | . 7 . Catastrophic 2 | . 2 . Database Lockouts 1 | . 1 . Manual 15 | . 15 . Terminals 17 | . 17 . Fabricators . | . . . Repair Stations . | . . . Recycling Units 4 | . 4 . Scanalyzers . | . . . Garrison Access . | . . . Terminal Hacks 7 | . 7 . Part Schematic 1 | . 1 . Robot Analysis 2 | . 2 . Prototype ID Bank 2 | . 2 . Locate Traps 2 | . 2 . Fabricator Hacks . | . . . Repair Station Hacks . | . . . Recycling Unit Hacks 2 | . 2 . Report Inventory 2 | . 2 . Scanalyzer . | . . . Garrison Access Hacks . | . . . Unauthorized Hacks 4 | . 4 . Terminals 2 | . 2 . Botnet 1 | . 1 . Operators 1 | . 1 . Fabricators . | . . . Repair Stations . | . . . Recycling Units 2 | . 2 . Tunnel 2 | . 2 . Scanalyzers . | . . . Garrison Access . | . . . Data Cores Recovered . | . . . Used . | . . . Hacking Detections 4 | . 4 . Full Trace Events 2 | . 2 . Feedback Events . | . . . Feedback Blocked . | . . . Robot Schematics Acquired . | . . . Robots Built . | . . . Authchips . | . . . Time . | . . . Total Robot Build Rating . | . . . Part Schematics Acquired 1 | . 1 . Parts Built . | . . . Authchips . | . . . Time . | . . . Total Part Build Rating . | . . . Parts Repaired . | . . . Time . | . . . Parts Recycled . | . . . Recycled Matter . | . . . Retrieved Matter . | . . . Retrieved Components . | . . . Parts Scanalyzed . | . . . Part Schematics Acquired . | . . . Parts Damaged . | . . . Bothacking | -11 -10 -10 ------------ Run | Yrd Mat Min Used RIF Installer . | . . . Robots Hacked . | . . . Non-combat . | . . . Combat . | . . . Robot Hacks Applied . | . . . Relay Couplers Released . | . . . Fabnet Peak Effective % . | . . . Robots Rewired . | . . . Allies Hacked . | . . . Hacks Repelled . | . . . Allies | -11 -10 -10 -------- Run | Yrd Mat Min Total Allies . | . . . Largest Group . | . . . Highest-Rated Group . | . . . Highest-Rated Ally . | . . . Total Orders . | . . . Ally Attacks . | . . . Total Damage . | . . . Kills . | . . . Allies Corrupted . | . . . Allies Melted . | . . . Intel | -11 -10 -10 ------- Run | Yrd Mat Min Robot Analysis Total 2 | . 2 . Derelict Logs Recovered 1 | . . 1 Drone Launches . | . . . Drone Recoveries . | . . . Exploration | -11 -10 -10 ------------- Run | Yrd Mat Min Turns Passed 1526 | 84 982 460 Spaces Moved 693 | 55 411 227 Core 1 | 1 . . Treads 1 | . 1 . Legs . | . . . Wheels 691 | 54 410 227 Hover . | . . . Flight . | . . . Fastest Speed 50 | 50 95 175 Average Speed 154 | 99 150 175 Slowest Speed 320 | 100 320 175 Overloaded Moves . | . . . Propulsion Burnouts . | . . . Robots Hopped . | . . . Cave-ins Triggered . | . . . Exploration Rate (%) 41 | 3 75 46 Regions Visited 2 Branch Regions 1 Pre-discovered Areas 2 | . 2 . Known Exits Taken . | . . . Unknown Exits Taken 2 | 1 1 . Scrap Searched . | . . . Spaces Dug . | . . . Terrain Destroyed . | . . . Melee . | . . . Projectile . | . . . AOE . | . . . Terrain Rammed . | . . . Walls Destroyed . | . . . Machines Disabled . | . . . Actions | -11 -10 -10 --------- Run | Yrd Mat Min Total 960 | 73 635 252 Wait 120 | 2 117 1 Move 691 | 54 410 227 Hop . | . . . Pick Up 24 | 6 18 . Fast Attach 7 | 6 1 . Attach 6 | 1 3 2 Detach . | . . . Swap 5 | . 4 1 Drop 5 | . 5 . Fire 95 | 4 77 14 Melee 7 | . . 7 Ram . | . . . Kick . | . . . Crush . | . . . Escape Stasis . | . . . Rewire . | . . . Trap . | . . . Miscellaneous . | . . . Route ------- -11/Scrapyard -10/Materials (discovered 3 exits: [*Mat x2] / [*Min]) -10/Mines (discovered 2 exits: [*Mat x2]) History --------- Turn | Location | Event 23 | -11/Scrapyard | Discovered new exit (range 16) 85 | -11/Scrapyard | Entered Materials 284 | -10/Materials | Discovered new exit (range 13) 303 | -10/Materials | Build established: Mutant 502 | -10/Materials | Discovered new exit (range 14) 709 | -10/Materials | Core integrity fell below 50% 794 | -10/Materials | Discovered new exit (range 10) 905 | -10/Materials | Central database locked down 1067 | -10/Materials | Entered Mines 1145 | -10/Mines | Core integrity fell below 20% 1171 | -10/Mines | Discovered new exit (range 5) 1243 | -10/Mines | Discovered new exit (range 5) 1293 | -10/Mines | Learned Materials emergency access door positions 1476 | -10/Mines | Excavation squad dispatched 1476 | -10/Mines | A large section of the Mines collapsed 1527 | -10/Mines | Destroyed by as-59578 with Assembled Maul Last Messages --------------- 01173_ Acquired 17 matter. 01243_ EXIT=FOUND 01273_ K-01 Serf collects debris. 01279_ Acquired 3 matter. 01280_ K-01 Serf collects debris. 01293_ Acquired derelict log, extracted data. Data stored: Materials emergency access points. 01476_ ALERT: Suspicious cave-in, suspected derelict activity in mines. Dispatching escorted excavation squad. 01477_ Lgt. Ion Engine destroyed. 01478_ Critical hit (Burn: +80). 01479_ as-15988 suffers critical hit (Destroy). 01479_ as-15988 destroyed. 01479_ Switching to secondary target: as-70964. 01488_ as-70964 suffers critical hit (Destroy). 01488_ as-70964 destroyed. 01490_ Acquired 11 matter. 01527_ Com. Wheel destroyed. 01527_ System corrupted by crushing effect (+1). Map ----- +----------------------------------------------------+ | | | | | ?????????????????????????????????????????????????? | | ?????????????????????????????????????????????????? | | ???????????????????????????????????????????????### | | ?????????????????????????????########??????????# | | ????????????????????????????## ##??????#### | | ????????????????????????????# #??????# == | | ?????????????????????##?????# #??????# ## | | ???????????###++###??# ####??# #???????# ## | | ???????????# #??# #??# #????????# ## | | ???????????# ##?? ???# ##????????# #### | | ???????????# #??# #???# ######????# #??? | | ???????????# #??# #???# ## ##???# #??? | | ?########### #### ##??# #???# #??? | | ## # #??## ##???# #??? | | # ###### #???### #### #????# #??? | | # #### #????###?????# #### ###### #??? | | #??# #????#%#?????# #??? | | #??#########????# #?????### ###########??? | | #### #??????????????##"#???????# #????????????? | | ???## ##????????????## ###??????# #????????????? | | ????# ##???????????### #??????# #????????????? | | ????# ###?????????##"# #??????# #????????????? | | ????# #######????### #??????# #????????????? | | ????## #???? #@##??????# #????????????? | | ????## #### #???? #a#???????# #????????????? | | ##### ##????????? #;#??????## ##???????????? | | # ##????????? a##??##### #???????????? | | # #### ##??????????###????# #???????????? | | # #??## #??????????????????# < ##???????????? | | # #????# #??????????????????# ##????????????? | | # #????? #??????????????????### ###?????????????? | | # ###### #????????????????????# #???????????????? | | # #????????????????????# #???????????????? | | # #?????????????######## #???????????????? | | # ########?????????????# #???????????????? | | # #????????????????????##! ######???????????????? | | # #?????????????# #### #????????????????????? | | # #??????????????# #????????????????????? | | #??????????????####### ##???????????????????? | | # #????????????????????#% ###### #??????????? | | # #????????????????????#! #????????? | | # #????????????????????#! #### ????????? | | # #????????????????????#= ##??????????????????? | | # ##???????????????????# ##???????????????????? | | #???################# #????????????????????? | | ##### #????????????????????? | | #????????????????????? | | ###################????????????????????? | +----------------------------------------------------+ Best States ------------- Heat Dissipation 25 Energy Generation 10 Energy Capacity 125 Matter Stores 300 Matter Capacity 300 Sight Range 16 Terrain Scan Density 10 Armor Coverage 150 Evasion (%) 41 Recoil Reduction 2 Item Schematics ----------------- Hcp. Storage Unit | -10/Materials | Hacked Robot Schematics ------------------ None Fabricated ------------ Nothing Alien Tech Used ----------------- None Achievements -------------- None Challenges ------------ None Game ------ Seed MetafiberIntegratedLog Manual? 0 Play Time 00:15:01 Cumulative 791.9 hours Start 2024.06.03 @ 19:06:03 End 2024.06.03 @ 21:00:48 Sessions 2 Manual Loads 0 Difficulty Rogue Special Mode None Game No. 328 Rogue 298 Adventurer 3 Explorer 27 Win Type - Total 17 Types 10/3/2/1/0/1/0/0/0 Lore% 92 Gallery% 97 Achievement% 86 Wizard Run 0 Options --------- Layout 2 ASCII 0 Keyboard 0 Movement Numpad Keybinds 0 Fullscreen 2 Font 24/Smallcaps Map View 50x44 Zoom Use 5% Tactical HUD 1 Map Filters NONE Filters NONE Steam 1 RUN: 320b6ebb-4521-418d-882e-b769b122b92a